bitfinex/quotes_BTCUSD_20250124
["timestamp","ask_amount","ask_price","bid_price","bid_amount"]
[1737684388460,6.2e-07,103170.0,103160.0,0.7526144]
[1737684388883,6.2e-07,103170.0,103160.0,0.7596144]
[1737684389703,6.2e-07,103170.0,103160.0,0.7576144]
[1737684390169,6.2e-07,103170.0,103160.0,0.7596144]
[1737684391038,6.2e-07,103170.0,103160.0,0.6387744]
[1737684391719,6.2e-07,103170.0,103160.0,0.6388144]
[1737684392190,6.2e-07,103170.0,103160.0,0.6266144]
[1737684394782,6.2e-07,103170.0,103160.0,0.6362283]
[1737684396487,6.2e-07,103170.0,103160.0,0.7592283]
[1737684396705,0.00029904,103200.0,103190.0,0.396908]
[1737684396930,0.00044848,103200.0,103190.0,0.51036979]
[1737684397356,0.00044848,103200.0,103190.0,0.5403917]
[1737684397977,0.00044848,103200.0,103190.0,0.5413917]
[1737684398170,0.00044848,103200.0,103190.0,0.5403917]
[1737684398595,0.00044848,103200.0,103190.0,0.5473917]
[1737684400436,0.00044848,103200.0,103190.0,0.5493917]
[1737684401075,0.00036004,103200.0,103190.0,0.5493917]
[1737684402334,0.00036004,103200.0,103190.0,0.55920701]
[1737684404401,0.00036004,103200.0,103190.0,0.55720701]
[1737684404604,0.00036004,103200.0,103190.0,0.55220701]
[1737684404826,0.00036004,103200.0,103190.0,0.55920701]
[1737684406880,4e-08,103200.0,103190.0,0.66240701]
[1737684407143,4e-08,103200.0,103190.0,0.71890701]
[1737684407366,0.00021039,103220.0,103210.0,0.396889]
[1737684407576,0.00021039,103220.0,103210.0,0.6197727]
[1737684408006,0.00021039,103220.0,103210.0,0.7197727]
[1737684408672,0.00021039,103220.0,103210.0,0.7267727]
[1737684409538,0.00021039,103220.0,103210.0,0.7287727]
[1737684410631,0.00021039,103220.0,103210.0,0.7617727]
[1737684411710,0.00029862,103240.0,103230.0,0.3]
[1737684411837,0.00079655,103240.0,103230.0,0.5403547]
[1737684412851,0.00079655,103240.0,103230.0,0.5423547]
[1737684413268,0.00079655,103240.0,103230.0,0.5403547]
[1737684413471,0.00079655,103240.0,103230.0,0.2403547]
[1737684413688,0.00079655,103240.0,103230.0,0.5423547]
[1737684413905,0.00079655,103240.0,103230.0,0.51233279]
[1737684414108,0.00079655,103240.0,103230.0,0.51933279]
[1737684414506,0.00079655,103240.0,103230.0,0.54925313]
[1737684414709,0.00079655,103240.0,103230.0,0.51933279]
[1737684415139,0.00079655,103240.0,103230.0,0.54925306]
[1737684415569,0.00079655,103240.0,103230.0,0.51933279]
[1737684415782,0.00079655,103240.0,103230.0,0.54925198]
[1737684416644,0.00079655,103240.0,103230.0,0.55887015]
[1737684421443,0.02079655,103240.0,103230.0,0.54987015]
[1737684421652,0.04639655,103240.0,103230.0,0.24987015]
[1737684421867,0.04639655,103240.0,103230.0,0.55887015]
[1737684422084,0.04639655,103240.0,103230.0,0.55187015]
[1737684422300,0.04639655,103240.0,103230.0,0.54987015]
[1737684422713,0.04639655,103240.0,103230.0,0.55187015]
[1737684423570,0.04639655,103240.0,103230.0,0.55887015]
[1737684424366,0.04639655,103240.0,103230.0,0.55187015]
[1737684424994,0.00079655,103240.0,103230.0,0.55887015]
[1737684425827,0.02079655,103240.0,103230.0,0.55687015]
[1737684426031,0.00079655,103240.0,103230.0,0.55687015]
[1737684426259,0.02079655,103240.0,103230.0,0.25887015]
[1737684426468,0.02079655,103240.0,103230.0,0.55187015]
[1737684426916,0.02079655,103240.0,103230.0,0.55887015]
[1737684427545,0.04829655,103240.0,103230.0,0.24225198]
[1737684427989,0.04829655,103240.0,103230.0,0.24725198]
[1737684428457,0.04829655,103240.0,103230.0,0.24925198]
[1737684429469,0.06829655,103240.0,103230.0,0.24925198]
[1737684429691,0.02079655,103240.0,103230.0,0.24925198]
[1737684429892,0.00079655,103240.0,103230.0,0.24925198]
[1737684433730,0.00079655,103240.0,103230.0,0.54925198]
[1737684435363,0.00079655,103240.0,103230.0,0.54939398]
[1737684436306,0.00079655,103240.0,103230.0,0.24939398]
[1737684436504,0.08259655,103240.0,103230.0,0.24939398]
[1737684438485,0.08242917,103240.0,103230.0,0.24939398]
[1737684438688,0.10242917,103240.0,103230.0,0.24939398]
[1737684439249,0.08242917,103240.0,103230.0,0.24939398]
[1737684439460,0.10242917,103240.0,103230.0,0.24939398]
[1737684439679,0.00062917,103240.0,103230.0,0.24939398]
[1737684444508,0.02062917,103240.0,103230.0,0.24939398]
[1737684444730,0.00062917,103240.0,103230.0,0.24939398]
[1737684444934,0.00062917,103240.0,103230.0,0.54939398]
[1737684445142,0.00062917,103240.0,103230.0,0.62609398]
[1737684445343,0.02062917,103240.0,103230.0,0.62609398]
[1737684445585,0.02062917,103240.0,103230.0,0.54939398]
[1737684445968,0.02062917,103240.0,103230.0,0.39939398]
[1737684446214,0.02062917,103240.0,103230.0,0.69939398]
[1737684450081,0.00062917,103240.0,103230.0,0.69939398]
[1737684450340,0.02062917,103240.0,103230.0,0.78626707]
[1737684450765,0.02062917,103240.0,103230.0,0.48626707]
[1737684451497,0.00062917,103240.0,103230.0,0.48626707]
[1737684452551,0.02062917,103240.0,103230.0,0.48626707]
[1737684459992,0.02062917,103240.0,103230.0,0.78626707]
[1737684460208,0.00062917,103240.0,103230.0,0.86166707]
[1737684460645,0.02062917,103240.0,103230.0,0.86166707]
[1737684461911,0.00062917,103240.0,103230.0,0.86166707]
[1737684462542,0.02062917,103240.0,103230.0,0.86166707]
[1737684462746,0.00062917,103240.0,103230.0,0.86166707]
[1737684464195,0.00062917,103240.0,103230.0,0.86011907]
[1737684465943,0.00062917,103240.0,103230.0,0.77324598]
[1737684467166,0.02062917,103240.0,103230.0,0.77324598]
[1737684467382,0.00062917,103240.0,103230.0,0.77324598]
[1737684469631,0.02062917,103240.0,103230.0,0.77324598]
[1737684470296,0.00062917,103240.0,103230.0,0.77324598]
[1737684470522,0.02062917,103240.0,103230.0,0.77324598]
[1737684471552,0.00062917,103240.0,103230.0,0.77324598]
[1737684471758,0.02062917,103240.0,103230.0,0.77324598]
[1737684472095,0.00062917,103240.0,103230.0,0.77324598]
[1737684472329,0.02062917,103240.0,103230.0,0.77324598]
[1737684472807,0.00062917,103240.0,103230.0,0.77324598]
[1737684473777,0.02062917,103240.0,103230.0,0.77324598]
[1737684473982,0.00062917,103240.0,103230.0,0.77324598]
[1737684475776,0.02062917,103240.0,103230.0,0.77324598]
[1737684476398,0.00062917,103240.0,103230.0,0.77324598]
[1737684483773,0.00011301,103250.0,103240.0,0.246861]
[1737684483981,3.3e-07,103250.0,103240.0,0.49492748]
[1737684484198,0.00029904,103260.0,103250.0,0.622352]
[1737684484199,0.00018636,103260.0,103250.0,0.622352]
[1737684484420,3.6e-07,103260.0,103250.0,0.76573298]
[1737684484627,3.6e-07,103260.0,103250.0,0.78873298]
[1737684485641,3.6e-07,103260.0,103250.0,0.79573298]
[1737684486464,3.6e-07,103260.0,103250.0,0.47473298]
[1737684486672,3.6e-07,103260.0,103250.0,0.69923298]
[1737684487491,3.6e-07,103260.0,103250.0,0.54923298]
[1737684487713,0.02000036,103260.0,103250.0,0.25890086]
[1737684487915,0.02000036,103260.0,103250.0,0.40890086]
[1737684488535,3.6e-07,103260.0,103250.0,0.70890086]
[1737684489383,0.14513069,103270.0,103260.0,0.246842]
[1737684489591,0.14513069,103270.0,103260.0,0.34418929]
[1737684489803,0.14513069,103270.0,103260.0,0.37410848]
[1737684490077,0.12513069,103270.0,103260.0,0.37410848]
[1737684490282,0.14513069,103270.0,103260.0,0.37410848]
[1737684490828,0.13847297,103270.0,103260.0,0.37410848]
[1737684491028,0.11847297,103270.0,103260.0,0.37410848]
[1737684491447,0.11847297,103270.0,103260.0,0.38110848]
[1737684491857,0.11852271,103270.0,103260.0,0.38110848]
[1737684492472,0.11852271,103270.0,103260.0,0.38310848]
[1737684493516,7.4e-07,103270.0,103260.0,0.68310848]
[1737684493719,7.4e-07,103270.0,103260.0,0.76010848]
[1737684493924,7.4e-07,103270.0,103260.0,0.46010848]
[1737684494147,7.4e-07,103270.0,103260.0,0.76010848]
[1737684494599,7.4e-07,103270.0,103260.0,0.46010848]
[1737684494800,7.4e-07,103270.0,103260.0,0.75310848]
[1737684495011,7.4e-07,103270.0,103260.0,0.45310848]
[1737684495274,7.4e-07,103270.0,103260.0,0.46010848]
[1737684495522,7.4e-07,103270.0,103260.0,0.45810848]
[1737684495796,7.4e-07,103270.0,103260.0,0.76010848]
[1737684497089,7.4e-07,103270.0,103260.0,0.53310848]
[1737684499777,7.4e-07,103270.0,103260.0,0.23310848]
[1737684499984,7.4e-07,103270.0,103260.0,0.53310848]
[1737684500364,7.4e-07,103270.0,103260.0,0.61084857]
[1737684500776,7.4e-07,103270.0,103260.0,0.31784857]
[1737684501029,7.4e-07,103270.0,103260.0,0.61784857]
[1737684501481,0.09640074,103270.0,103260.0,0.61784857]
[1737684501677,0.14520074,103270.0,103260.0,0.61984857]
[1737684502282,0.12520074,103270.0,103260.0,0.61984857]
[1737684502487,0.14520074,103270.0,103260.0,0.61984857]
[1737684503961,0.06880074,103270.0,103260.0,0.61984857]
[1737684504228,0.06880074,103270.0,103260.0,0.53310848]
[1737684504404,0.06880074,103270.0,103260.0,0.53325068]
[1737684504628,0.06909936,103270.0,103260.0,0.53325068]
[1737684504840,0.02029936,103270.0,103260.0,0.53325068]
[1737684507345,0.02029936,103270.0,103260.0,0.61999077]
[1737684514036,0.00029936,103270.0,103260.0,0.61999077]
[1737684517514,0.00029936,103270.0,103260.0,0.22314877]
[1737684517515,0.23205352,103270.0,103260.0,0.22314877]
[1737684517726,0.32888652,103270.0,103260.0,0.09588229]
[1737684518353,0.22083236,103270.0,103260.0,0.09588229]
[1737684518555,0.22083236,103270.0,103260.0,0.19272429]
[1737684518770,0.12399936,103270.0,103260.0,0.19122958]
[1737684518919,0.12399936,103270.0,103260.0,0.28807158]
[1737684519127,0.12399936,103270.0,103260.0,0.28907158]
[1737684519334,0.22083236,103270.0,103260.0,0.28907158]
[1737684519761,0.22083236,103270.0,103260.0,0.28207158]
[1737684520063,0.22083236,103270.0,103260.0,0.28607158]
[1737684521578,0.36188652,103270.0,103260.0,0.09188229]
[1737684522055,1.86188652,103270.0,103260.0,0.09188229]
[1737684522519,1.86188652,103270.0,103260.0,0.0051422]
[1737684523195,1.85188652,103270.0,103260.0,0.0051422]
[1737684523670,0.35188652,103270.0,103260.0,0.0051422]
[1737684524497,0.36188652,103270.0,103260.0,0.0051422]
[1737684524748,0.36188652,103270.0,103260.0,0.0001422]
[1737684525911,0.35188652,103270.0,103260.0,0.0001422]
[1737684526140,0.35188652,103270.0,103260.0,0.0011422]
[1737684527228,0.32888652,103270.0,103260.0,0.0011422]
[1737684528285,0.36188652,103270.0,103260.0,0.0011422]
[1737684529761,0.45923381,103270.0,103260.0,0.0011422]
[1737684529974,0.56728797,103270.0,103260.0,0.0011422]
[1737684530175,0.45923381,103270.0,103260.0,0.0011422]
[1737684530749,0.58728797,103270.0,103260.0,0.0011422]
[1737684531043,0.56728797,103270.0,103260.0,0.0011422]
[1737684531399,0.55728797,103270.0,103260.0,0.0011422]
[1737684531608,0.56728797,103270.0,103260.0,0.0011422]
[1737684531832,0.32888652,103270.0,103260.0,0.0011422]
[1737684541442,0.58728797,103270.0,103260.0,0.0011422]
[1737684541656,0.55728797,103270.0,103260.0,0.0011422]
[1737684542781,0.55728797,103270.0,103260.0,0.0001422]
[1737684544132,0.55728797,103270.0,103260.0,0.0011422]
[1737684561311,0.55728797,103270.0,103230.0,0.150142]
[1737684561312,0.1758,103250.0,103230.0,0.150142]
[1737684561539,0.20491516,103240.0,103230.0,0.000142]
[1737684563322,0.20491516,103240.0,103230.0,0.001142]
[1737684564186,0.20491516,103240.0,103230.0,0.000142]
[1737684564360,0.20491516,103240.0,103230.0,0.001142]
[1737684564786,0.34596932,103240.0,103230.0,0.001142]
[1737684565335,0.096889,103210.0,103200.0,0.083]
[1737684565445,0.096899,103200.0,103190.0,0.16988219]
[1737684565649,0.20495316,103200.0,103190.0,0.16988219]
[1737684566565,0.20495316,103200.0,103190.0,0.41679019]
[1737684566780,0.096894,103210.0,103200.0,0.246899]
[1737684567210,0.22418548,103210.0,103200.0,0.15]
[1737684567689,0.22418548,103210.0,103200.0,0.246899]
[1737684568043,0.22418548,103210.0,103200.0,0.15]
[1737684569583,0.22418548,103210.0,103200.0,0.151]
[1737684571752,0.22418548,103210.0,103200.0,0.001]
[1737684572344,1.77168548,103210.0,103200.0,0.001]
[1737684572931,0.204899,103200.0,103190.0,0.00064003]
[1737684573142,0.096918,103180.0,103170.0,0.0923145]
[1737684573273,0.20497216,103180.0,103170.0,0.1661635]
[1737684573478,0.20497216,103180.0,103170.0,0.150049]
[1737684573707,0.20497216,103180.0,103170.0,4.9e-05]
[1737684574342,0.20497216,103180.0,103170.0,0.154049]
[1737684575818,0.20497216,103180.0,103170.0,0.155049]
[1737684576266,0.20497216,103180.0,103170.0,0.251976]
[1737684576478,0.20497216,103180.0,103170.0,0.155049]
[1737684578035,0.21440516,103180.0,103170.0,0.005049]
[1737684578669,0.32245932,103180.0,103170.0,0.005049]
[1737684578916,0.53130661,103180.0,103170.0,0.005049]
[1737684579131,0.55130661,103180.0,103170.0,0.005049]
[1737684579576,0.55130661,103180.0,103170.0,0.004049]
[1737684579577,0.52130661,103180.0,103170.0,0.004049]
[1737684579790,0.56650661,103180.0,103170.0,4.9e-05]
[1737684580429,0.1013,103170.0,103160.0,0.0001421]
[1737684580650,0.1013,103170.0,103120.0,0.16678229]
[1737684580651,0.20501816,103130.0,103120.0,0.16678229]
[1737684581293,0.23801816,103130.0,103120.0,0.08688229]
[1737684581713,0.34607232,103130.0,103120.0,0.08688229]
[1737684581986,0.41167232,103130.0,103120.0,0.08688229]
[1737684582200,0.41167232,103130.0,103120.0,0.08703161]
[1737684582619,0.41167232,103130.0,103120.0,0.08803161]
[1737684583046,0.50901961,103130.0,103120.0,0.09203161]
[1737684583280,0.50901961,103130.0,103120.0,0.08803161]
[1737684583703,0.50901961,103130.0,103120.0,0.00129152]
[1737684584792,0.50901961,103130.0,103120.0,0.00029152]
[1737684585659,0.40096545,103130.0,103120.0,0.00029152]
[1737684585864,0.22801816,103130.0,103120.0,0.00029152]
[1737684586076,0.22801816,103130.0,103120.0,0.15029152]
[1737684586415,0.21460084,103130.0,103120.0,0.15029152]
[1737684587049,0.21460084,103130.0,103120.0,0.00029152]
[1737684587911,0.618172,103140.0,103130.0,0.15]
[1737684588133,0.6473575,103140.0,103130.0,0.15]
[1737684588345,0.55183486,103140.0,103130.0,0.246964]
[1737684588556,0.53231516,103140.0,103130.0,0.246964]
[1737684588975,0.53231516,103140.0,103130.0,0.15]
[1737684590229,0.53231516,103140.0,103130.0,0.34431129]
[1737684590230,0.3273,103140.0,103130.0,0.34431129]
[1737684590438,0.424255,103140.0,103130.0,0.43572579]
[1737684590644,0.53230916,103140.0,103130.0,0.43572579]
[1737684590860,0.53230916,103140.0,103130.0,0.2253]
[1737684591089,0.64036332,103140.0,103130.0,0.2253]
[1737684591294,0.53230916,103140.0,103130.0,0.2253]
[1737684591511,0.53230916,103140.0,103130.0,0.2263]
[1737684591714,0.64036332,103140.0,103130.0,0.2263]
[1737684591920,0.31306332,103140.0,103130.0,0.15]
[1737684592125,0.31306332,103140.0,103120.0,0.37129552]
[1737684592126,0.096964,103130.0,103120.0,0.08039152]
[1737684592312,0.20501816,103130.0,103120.0,0.17773881]
[1737684592509,0.10805416,103130.0,103120.0,0.42471281]
[1737684593054,0.20501716,103140.0,103130.0,0.247964]
[1737684593314,0.20501716,103140.0,103130.0,0.34531129]
[1737684593873,0.20501716,103140.0,103130.0,0.34431129]
[1737684594287,0.10805416,103140.0,103130.0,0.34531129]
[1737684595857,0.10805416,103140.0,103130.0,0.36142579]
[1737684598313,0.02,103140.0,103130.0,0.36142579]
[1737684598723,0.02,103140.0,103130.0,0.63614279]
[1737684598926,0.12805416,103140.0,103130.0,0.63614279]
[1737684599379,0.12805416,103140.0,103130.0,0.63514279]
[1737684599800,0.12805416,103140.0,103130.0,0.63914279]
[1737684601902,0.12805416,103140.0,103130.0,0.64014279]
[1737684602826,0.02,103140.0,103130.0,0.64014279]
[1737684604155,0.02,103140.0,103130.0,0.94014279]
[1737684604360,0.02,103140.0,103130.0,0.98984279]
[1737684605202,0.02,103140.0,103130.0,1.01991733]
[1737684605617,0.02,103140.0,103130.0,0.68984279]
[1737684606249,0.02,103140.0,103130.0,0.71993823]
[1737684606458,0.12805416,103140.0,103130.0,0.67023823]
[1737684606663,0.12805416,103140.0,103130.0,0.64014279]
[1737684606879,0.31306332,103140.0,103130.0,0.101964]
[1737684607060,0.44859778,103150.0,103140.0,0.15]
[1737684607304,0.59309878,103150.0,103130.0,0.48664479]
[1737684607481,0.09724462,103150.0,103140.0,0.096955]
[1737684607728,0.20529878,103150.0,103140.0,0.246955]
[1737684607964,0.20529878,103150.0,103140.0,0.15]
[1737684608176,0.20529878,103150.0,103140.0,0.246955]
[1737684609252,0.20529878,103150.0,103140.0,0.15]
[1737684609669,0.20529878,103150.0,103140.0,0.151]
[1737684610049,0.20529878,103150.0,103140.0,0.247955]
[1737684611225,0.20529878,103150.0,103140.0,0.151]
[1737684612327,0.20529878,103150.0,103140.0,0.247955]
[1737684612729,0.20529878,103150.0,103140.0,0.151]
[1737684615419,0.20529878,103150.0,103140.0,0.15]
[1737684615624,0.20529878,103150.0,103140.0,0.151]
[1737684616363,0.20529878,103150.0,103140.0,0.15]
[1737684616624,0.2244574,103150.0,103140.0,0.15]
[1737684616791,0.096955,103140.0,103130.0,0.0001422]
[1737684616994,0.20500916,103140.0,103130.0,0.0001422]
[1737684617212,0.20500916,103140.0,103130.0,0.1501422]
[1737684617457,0.20500916,103140.0,103130.0,0.1701422]
[1737684617583,0.20500916,103140.0,103130.0,0.1501422]
[1737684618220,0.20500916,103140.0,103130.0,0.2471062]
[1737684618451,0.20500916,103140.0,103130.0,0.27830037]
[1737684619780,0.20500916,103140.0,103130.0,0.18133637]
[1737684620793,0.46326332,103140.0,103130.0,0.0011422]
[1737684621234,1.96326332,103140.0,103130.0,0.0011422]
[1737684621647,1.96326332,103140.0,103130.0,0.0001422]
[1737684622896,0.27310916,103140.0,103130.0,0.0001422]
[1737684623100,0.25010916,103140.0,103130.0,0.1501422]
[1737684625145,0.27310916,103140.0,103130.0,0.0001422]
[1737684625348,0.38116332,103140.0,103130.0,0.0001422]
[1737684625552,0.27310916,103140.0,103130.0,0.0001422]
[1737684625753,0.38116332,103140.0,103130.0,0.0001422]
[1737684625911,0.27310916,103140.0,103130.0,0.0001422]
[1737684626589,0.38116332,103140.0,103130.0,0.0001422]
[1737684626789,0.27310916,103140.0,103130.0,0.0001422]
[1737684628564,0.38116332,103140.0,103130.0,0.0001422]
[1737684628969,0.27310916,103140.0,103130.0,0.0001422]
[1737684633894,1.77310916,103140.0,103130.0,0.0001422]
[1737684636770,1.88116332,103140.0,103130.0,0.0001422]
[1737684638731,1.77310916,103140.0,103130.0,0.0001422]
[1737684638949,1.88116332,103140.0,103130.0,0.0001422]
[1737684639879,1.77310916,103140.0,103130.0,0.0001422]
[1737684640091,0.1259721,103150.0,103140.0,0.246955]
[1737684640294,0.09724462,103150.0,103140.0,0.34430229]
[1737684640515,0.20529878,103150.0,103140.0,0.24734729]
[1737684641352,0.10835278,103150.0,103140.0,0.34430229]
[1737684641553,0.00029862,103150.0,103140.0,0.34430229]
[1737684641761,0.00029862,103150.0,103140.0,0.42680229]
[1737684642521,0.10835278,103150.0,103140.0,0.42680229]
[1737684642926,0.20529878,103150.0,103140.0,0.42680229]
[1737684643124,0.20529878,103150.0,103140.0,0.15]
[1737684643334,0.096955,103140.0,103130.0,0.0816422]
[1737684643555,0.20500916,103140.0,103130.0,0.24748949]
[1737684643749,1.70500916,103140.0,103130.0,0.24748949]
[1737684644210,0.20500916,103140.0,103130.0,0.24748949]
[1737684644578,0.20500916,103140.0,103130.0,0.24848949]
[1737684644770,1.70500916,103140.0,103130.0,0.34545349]
[1737684645923,1.70500916,103140.0,103130.0,0.1511422]
[1737684646350,0.20500916,103140.0,103130.0,0.1511422]
[1737684646974,0.46626332,103140.0,103130.0,0.1511422]
[1737684647388,1.85820916,103140.0,103130.0,0.0011422]
[1737684647598,1.96626332,103140.0,103130.0,0.0011422]
[1737684647890,1.96626332,103140.0,103130.0,0.0001422]
[1737684648308,1.85820916,103140.0,103130.0,0.0001422]
[1737684648507,1.96626332,103140.0,103130.0,0.0001422]
[1737684650947,1.98566667,103140.0,103130.0,0.0001422]
[1737684653520,1.99527651,103140.0,103130.0,0.0001422]
[1737684656769,2.01527651,103140.0,103130.0,0.0001422]
[1737684657939,2.01162159,103140.0,103130.0,0.0001422]
[1737684661240,2.11896888,103140.0,103130.0,0.0001422]
[1737684661453,0.61896888,103140.0,103130.0,0.0001422]
[1737684661657,0.59896888,103140.0,103130.0,0.0001422]
[1737684662489,0.58896888,103140.0,103130.0,0.0001422]
[1737684663930,0.49362159,103140.0,103130.0,0.0011422]
[1737684666967,0.6252675,103140.0,103130.0,0.0001422]
[1737684668647,0.62511519,103140.0,103130.0,0.0001422]
[1737684673773,0.60511519,103140.0,103130.0,0.0001422]
[1737684673975,0.62511519,103140.0,103130.0,0.0001422]
[1737684683797,0.61511519,103140.0,103130.0,0.0001422]
[1737684683999,0.53481519,103140.0,103130.0,0.0001422]
[1737684684411,0.48491519,103140.0,103130.0,0.0001422]
[1737684684754,0.49491519,103140.0,103130.0,0.0001422]
[1737684686399,1.98491519,103140.0,103130.0,0.0001422]
[1737684686846,1.99491519,103140.0,103130.0,0.0001422]
[1737684689307,0.49491519,103140.0,103130.0,0.0001422]
[1737684698198,0.48491519,103140.0,103130.0,0.0001422]
[1737684699152,0.27951374,103140.0,103130.0,0.0001422]
[1737684699358,0.3875679,103140.0,103130.0,0.0001422]
[1737684700957,0.3675679,103140.0,103130.0,0.0001422]
[1737684701172,0.3875679,103140.0,103130.0,0.0001422]
[1737684704992,0.23651374,103140.0,103130.0,0.1271422]
[1737684705839,0.3445679,103140.0,103130.0,0.1271422]
[1737684706018,0.3675679,103140.0,103130.0,0.0782422]
[1737684706434,1.8675679,103140.0,103130.0,0.0782422]
[1737684709495,1.8675679,103140.0,103130.0,0.2282422]
[1737684709962,1.75951374,103140.0,103130.0,0.2282422]
[1737684710825,1.75941678,103140.0,103130.0,0.2282422]
[1737684713252,0.25941678,103140.0,103130.0,0.2282422]
[1737684713664,0.23641678,103140.0,103130.0,0.3252062]
[1737684713799,0.23641678,103140.0,103130.0,0.2758422]
[1737684716223,0.23641678,103140.0,103130.0,0.3728062]
[1737684716224,0.12652568,103140.0,103130.0,0.3728062]
[1737684716435,0.02570197,103140.0,103130.0,0.3728062]
[1737684716645,0.00629862,103140.0,103130.0,0.48626799]
[1737684716863,0.00629862,103140.0,103130.0,0.51650848]
[1737684717451,0.00629862,103140.0,103130.0,0.51678977]
[1737684718006,0.00229862,103140.0,103130.0,0.51678977]
[1737684718214,0.00329862,103140.0,103130.0,0.51678977]
[1737684718418,0.00129862,103140.0,103130.0,0.51678977]
[1737684718839,0.00229862,103140.0,103130.0,0.51678977]
[1737684719176,0.02229862,103140.0,103130.0,0.51678977]
[1737684719464,0.00229862,103140.0,103130.0,0.51678977]
[1737684720382,0.00229862,103140.0,103130.0,0.52664256]
[1737684721795,0.00229862,103140.0,103130.0,0.49739648]
[1737684722857,0.02029862,103150.0,103130.0,0.70043248]
[1737684723063,0.00029862,103150.0,103140.0,0.39050229]
[1737684723265,0.00029862,103150.0,103140.0,0.42074278]
[1737684724401,0.00029862,103150.0,103140.0,0.42774278]
[1737684724793,0.00029862,103150.0,103140.0,0.51104278]
[1737684725623,0.00029862,103150.0,103140.0,0.51304278]
[1737684727316,0.00029862,103150.0,103140.0,0.59978287]
[1737684727532,0.3273,103200.0,103190.0,0.096908]
[1737684727740,0.87489883,103210.0,103200.0,0.330199]
[1737684727741,0.00029883,103210.0,103200.0,0.330199]
[1737684727951,0.00029883,103210.0,103200.0,0.42754629]
[1737684728605,0.00029883,103210.0,103200.0,0.77404629]
[1737684728807,0.00034854,103210.0,103200.0,0.80410653]
[1737684729661,0.00034854,103210.0,103200.0,0.80510653]
[1737684730335,0.00034854,103210.0,103200.0,0.77504629]
[1737684730551,0.00034854,103210.0,103200.0,0.77904629]
[1737684730930,0.00034854,103210.0,103200.0,0.77804629]
[1737684731132,0.00034854,103210.0,103200.0,0.77904629]
[1737684732499,0.00034854,103210.0,103200.0,0.77932752]
[1737684732846,0.00034854,103210.0,103200.0,0.43282752]
[1737684733040,0.02034854,103210.0,103200.0,0.43282752]
[1737684733318,0.02034854,103210.0,103200.0,0.43282751]
[1737684734852,0.00034854,103210.0,103200.0,0.43282751]
[1737684735058,0.02034854,103210.0,103200.0,0.43282751]
[1737684735258,0.00034854,103210.0,103200.0,0.43282751]
[1737684735461,0.00034854,103210.0,103200.0,0.75860267]
[1737684736046,0.00034854,103210.0,103200.0,0.75760266]
[1737684736250,0.00034854,103210.0,103200.0,0.75560266]
[1737684736478,0.00034854,103210.0,103200.0,0.80310266]
[1737684736683,0.00034854,103210.0,103200.0,0.81010266]
[1737684737733,0.00034854,103210.0,103200.0,0.80810266]
[1737684737931,0.00034854,103210.0,103200.0,0.81010266]
[1737684738337,0.00034854,103210.0,103200.0,0.84310266]
[1737684738526,0.00029883,103250.0,103240.0,0.096861]
[1737684738719,0.00034862,103250.0,103240.0,0.34420829]
[1737684742601,0.09720062,103250.0,103240.0,0.24734729]
[1737684742798,0.20525478,103250.0,103240.0,0.24734729]
[1737684743556,0.20525478,103250.0,103240.0,0.15]
[1737684744588,1.70525478,103250.0,103240.0,0.15]
[1737684744792,0.20525478,103250.0,103240.0,0.15]
[1737684746054,0.22825478,103250.0,103240.0,0.15]
[1737684749322,0.196261,103240.0,103230.0,0.00028118]
[1737684749520,0.35281516,103240.0,103230.0,0.00028118]
[1737684749948,1.85281516,103240.0,103230.0,0.00028118]
[1737684753749,0.35281516,103240.0,103230.0,0.00028118]
[1737684754446,0.32981516,103240.0,103230.0,0.00028118]
[1737684754657,0.096861,103240.0,103230.0,0.00028118]
[1737684755258,0.20491516,103240.0,103230.0,0.00028118]
[1737684756102,0.20491516,103240.0,103230.0,0.00128118]
[1737684757059,0.20491516,103240.0,103230.0,0.24815218]
[1737684758530,0.10805416,103240.0,103230.0,0.24815218]
[1737684758772,0.12753327,103240.0,103230.0,0.24815218]
[1737684758932,0.12783189,103240.0,103230.0,0.24815218]
[1737684759310,0.00029862,103240.0,103230.0,0.40135914]
[1737684759852,0.00029862,103240.0,103230.0,0.40135913]
[1737684760298,0.20521378,103240.0,103230.0,0.40135913]
[1737684763481,0.10835278,103240.0,103230.0,0.40135913]
[1737684763658,0.20521378,103240.0,103230.0,0.40135913]
[1737684763858,0.20521378,103240.0,103230.0,0.18136568]
[1737684764069,0.20521378,103240.0,103230.0,0.18136567]
[1737684767364,0.20521378,103240.0,103230.0,0.27823667]
[1737684767542,0.00029862,103240.0,103230.0,0.27823667]
[1737684767741,0.00029862,103240.0,103230.0,0.47945912]
[1737684767970,0.00029862,103240.0,103230.0,0.77945912]
[1737684768139,0.00029862,103240.0,103230.0,0.77945911]
[1737684768532,0.02029862,103240.0,103230.0,0.77945911]
[1737684768740,0.00029862,103240.0,103230.0,0.77945911]
[1737684768941,0.02029862,103240.0,103230.0,0.77945911]
[1737684769208,0.02029862,103240.0,103230.0,0.7794591]
[1737684769350,0.00029862,103240.0,103230.0,0.7794591]
[1737684772157,0.00029862,103240.0,103230.0,0.77945909]
[1737684773040,0.02029862,103240.0,103230.0,0.77945909]
[1737684773386,0.00029862,103240.0,103230.0,0.77945909]
[1737684774412,0.00029862,103240.0,103230.0,0.86619918]
[1737684774742,0.00029862,103240.0,103230.0,0.87575763]
[1737684778144,0.00029862,103240.0,103230.0,0.87575762]
[1737684781596,0.02029862,103240.0,103230.0,0.48809917]
[1737684781824,0.22521378,103240.0,103230.0,0.48809917]
[1737684782028,0.25201378,103240.0,103230.0,0.08802121]
[1737684782478,0.25201378,103240.0,103230.0,0.23802121]
[1737684782672,0.25201378,103240.0,103230.0,0.33489221]
[1737684784062,0.25201378,103240.0,103230.0,0.24815212]
[1737684784258,0.25201378,103240.0,103230.0,0.24815211]
[1737684786866,0.25201378,103240.0,103230.0,0.15128111]
[1737684788303,0.25201378,103240.0,103230.0,0.24815211]
[1737684789324,0.27177105,103240.0,103230.0,0.24815211]
[1737684790291,0.02005589,103240.0,103230.0,0.24815211]
[1737684790493,0.02005589,103240.0,103230.0,0.27834506]
[1737684792822,0.00029862,103240.0,103230.0,0.37569235]
[1737684798601,0.00029862,103240.0,103230.0,0.40146751]
[1737684798811,0.02029862,103240.0,103230.0,0.40146751]
[1737684799018,0.00029862,103240.0,103230.0,0.48196751]
[1737684799225,0.00029862,103240.0,103230.0,0.4819675]
[1737684799803,0.02029862,103240.0,103230.0,0.4819675]
[1737684800368,0.02029862,103240.0,103230.0,0.4014675]
[1737684800824,0.02029862,103240.0,103230.0,0.48820759]
[1737684801242,0.00029862,103240.0,103230.0,0.78820759]
[1737684801493,0.02029862,103240.0,103230.0,0.78820759]
[1737684801660,0.00029862,103240.0,103230.0,0.78820759]
[1737684801864,0.02029862,103240.0,103230.0,0.48820759]
[1737684802399,0.02029862,103240.0,103230.0,0.49763916]
[1737684803260,0.00029862,103240.0,103230.0,0.49763915]
[1737684803462,0.00029862,103240.0,103230.0,0.57603915]
[1737684803648,0.02029862,103240.0,103230.0,0.57603915]